fUST/lending_fUST_20260207
["ID","MTS","AMOUNT","RATE_DAILY","PERIOD"]
[404664403,1770397774070,-135.05343558,0.000172,2]
[404664404,1770397774083,-146.97828221,0.000172,2]
[404664405,1770397774095,-300.0,0.000172,2]
[404664406,1770397774110,-300.0,0.000172,2]
[404664407,1770397774121,-48.96828221,0.000172,2]
[404664408,1770397774131,-251.03171779,0.00017556,2]
[404664409,1770397774146,-300.0,0.00017556,2]
[404664410,1770397774159,-168.96828221,0.00017556,2]
[404664411,1770397774168,-131.03171779,0.00018425,2]
[404664412,1770397774188,-300.0,0.00018425,2]
[404664413,1770397774199,-300.0,0.00018425,2]
[404664414,1770397774211,-300.0,0.00018425,2]
[404664415,1770397774227,-300.0,0.00018425,2]
[404664416,1770397774238,-300.0,0.00018425,2]
[404664417,1770397774249,-300.0,0.00018425,2]
[404664418,1770397774265,-600.0,0.00018425,2]
[404664419,1770397774280,-420.0,0.00018425,2]
[404664420,1770397774295,-180.80031721,0.00018425,2]
[404664421,1770397784726,5000.0,0.00018425,2]
[404664423,1770397812431,259.9815502,0.00013273,2]
[404664453,1770397832421,-1042.85917864,0.00019303,2]
[404664454,1770397832432,-1097.25,0.00019303,2]
[404664455,1770397832444,-2859.89082136,0.00019303,2]
[404664456,1770397832454,-542.69351505,0.00019498,2]
[404664457,1770397832463,-300.0,0.00019498,2]
[404664458,1770397832474,-1472.94532562,0.00019499,2]
[404664493,1770397838498,-332.07551782,0.00019304,2]
[404664494,1770397838508,-21180.55328308,0.00019499,2]
[404664495,1770397838519,-1000.0,0.00022111,30]
[404664496,1770397838528,-179.89206476,0.00025349,2]
[404664497,1770397838538,-4353.15659815,0.00025522,2]
[404664499,1770397838551,-632.0,0.00025622,2]
[404664500,1770397838561,-446.312,0.00025622,2]
[404664501,1770397838571,-420.0,0.00025622,2]
[404664502,1770397838582,-719.0,0.00025622,2]
[404664503,1770397838592,-179.0,0.00025622,2]
[404664504,1770397838602,-500.0,0.00026369,2]
[404664505,1770397838611,-500.0,0.00026369,2]
[404664506,1770397838621,-500.0,0.00026369,2]
[404664507,1770397838633,-500.0,0.00026369,2]
[404664508,1770397838643,-500.0,0.00026369,2]
[404664509,1770397838653,-500.0,0.00026369,2]
[404664510,1770397838663,-250.0,0.00026369,2]
[404664511,1770397838675,-500.0,0.00026369,2]
[404664512,1770397838685,-500.0,0.00026369,2]
[404664513,1770397838695,-500.0,0.00026369,2]
[404664514,1770397838706,-500.0,0.00026369,2]
[404664515,1770397838715,-500.0,0.00026369,2]
[404664516,1770397838724,-500.0,0.00026369,2]
[404664517,1770397838735,-500.0,0.00026369,2]
[404664518,1770397838745,-500.0,0.00026369,2]
[404664519,1770397838755,-500.0,0.00026369,2]
[404664520,1770397838765,-500.0,0.00026369,2]
[404664521,1770397838775,-500.0,0.00026369,2]
[404664522,1770397838784,-500.0,0.00026369,2]
[404664523,1770397838795,-500.0,0.00026369,2]
[404664524,1770397838805,-500.0,0.00026369,2]
[404664525,1770397838815,-500.0,0.00026369,2]
[404664526,1770397838824,-500.0,0.00026369,2]
[404664527,1770397838834,-250.0,0.00026369,2]
[404664528,1770397838843,-224.0,0.00026387,3]
[404664529,1770397838853,-224.0,0.00026387,3]
[404664530,1770397838863,-224.0,0.00026387,3]
[404664531,1770397838872,-224.0,0.00026387,3]
[404664532,1770397838882,-224.0,0.00026387,3]
[404664533,1770397838895,-224.0,0.00026387,3]
[404664534,1770397838905,-224.0,0.00026387,3]
[404664535,1770397838915,-224.0,0.00026387,3]
[404664536,1770397838924,-224.0,0.00026387,3]
[404664537,1770397838934,-224.0,0.00026387,3]
[404664538,1770397838943,-224.0,0.00026387,3]
[404664539,1770397838953,-224.0,0.00026387,3]
[404664540,1770397838963,-224.0,0.00026387,3]
[404664541,1770397838973,-224.0,0.00026387,3]
[404664542,1770397838984,-224.0,0.00026387,3]
[404664543,1770397838995,-224.0,0.00026387,3]
[404664544,1770397839004,-224.0,0.00026387,3]
[404664545,1770397839014,-224.0,0.00026387,3]
[404664546,1770397839025,-224.0,0.00026387,3]
[404664547,1770397839034,-224.0,0.00026387,3]
[404664548,1770397839045,-224.0,0.00026387,3]
[404664549,1770397839055,-224.0,0.00026387,3]
[404664550,1770397839064,-224.0,0.00026387,3]
[404664551,1770397839073,-224.0,0.00026387,3]
[404664552,1770397839083,-224.0,0.00026387,3]
[404664553,1770397839093,-224.0,0.00026387,3]
[404664554,1770397839104,-224.0,0.00026387,3]
[404664555,1770397839115,-224.0,0.00026387,3]
[404664556,1770397839124,-224.0,0.00026387,3]
[404664557,1770397839135,-224.0,0.00026387,3]
[404664558,1770397839144,-224.0,0.00026387,3]
[404664559,1770397839154,-224.0,0.00026387,3]
[404664560,1770397839163,-224.0,0.00026387,3]
[404664561,1770397839173,-224.0,0.00026387,3]
[404664562,1770397839183,-224.0,0.00026387,3]
[404664563,1770397839193,-224.0,0.00026387,3]
[404664564,1770397839203,-224.0,0.00026387,3]
[404664565,1770397839212,-224.0,0.00026387,3]
[404664566,1770397839222,-224.0,0.00026387,3]
[404664567,1770397839234,-224.0,0.00026387,3]
[404664568,1770397839244,-224.0,0.00026387,3]
[404664569,1770397839254,-224.0,0.00026387,3]
[404664570,1770397839264,-224.0,0.00026387,3]
[404664571,1770397839274,-224.0,0.00026387,3]
[404664572,1770397839283,-224.0,0.00026387,3]
[404664573,1770397839293,-224.0,0.00026387,3]
[404664574,1770397839302,-224.0,0.00026387,3]
[404664575,1770397839312,-224.0,0.00026387,3]
[404664576,1770397839322,-224.0,0.00026387,3]
[404664577,1770397839331,-163.82643155,0.00026387,3]
[404664578,1770397839341,-1041.66666667,0.00026387,3]
[404664579,1770397839351,-741.48751943,0.00026387,3]
[404664580,1770397839361,-168.0,0.00026689,2]
[404664581,1770397839372,-600.0,0.00026896,30]
[404664582,1770397839382,-168.0,0.0002734,2]
[404664583,1770397839392,-711.0,0.000274,3]
[404664584,1770397839402,-400.0,0.000274,3]
[404664585,1770397839412,-168.0,0.00027404,2]
[404664586,1770397839421,-4353.15659815,0.00027562,2]
[404664587,1770397839431,-400.0,0.00027906,3]
[404664588,1770397839441,-168.0,0.0002795,2]
[404664589,1770397839450,-2713.41691152,0.0002799,2]
[404664590,1770397839460,-767.0,0.00027996,10]
[404664591,1770397839469,-187.52344874,0.0002813,2]
[404664592,1770397839481,-1041.66666667,0.00028306,2]
[404664593,1770397839491,-741.48751943,0.00028306,2]
[404664594,1770397839500,-400.0,0.0002836,3]
[404664595,1770397839510,-168.0,0.00028376,2]
[404664596,1770397839520,-420.0,0.00028622,2]
[404664597,1770397839530,-420.0,0.00028622,2]
[404664598,1770397839540,-358.0,0.00028622,2]
[404664599,1770397839550,-179.0,0.00028622,2]
[404664600,1770397839560,-161.0,0.0002868,3]
[404664601,1770397839569,-2529.01822713,0.0002871,2]
[404664602,1770397839578,-1962.76054693,0.00028761,60]
[404664645,1770397840904,-500.0,0.00026369,2]
[404664647,1770397840914,-250.0,0.00026369,2]
[404664649,1770397840923,-500.0,0.00026369,2]
[404664651,1770397840933,-250.0,0.00026369,2]
[404664653,1770397840942,-500.0,0.00026369,2]
[404664655,1770397840951,-250.0,0.00026369,2]
[404664657,1770397840961,-500.0,0.00026369,2]
[404664659,1770397840970,-2804.93146007,0.00028761,60]
[404664661,1770397840985,-711.0,0.00028831,3]
[404664663,1770397840994,-711.0,0.00028835,3]
[404664665,1770397841003,-2668.170024,0.00028847,60]
[404664667,1770397841013,-1524.167862,0.0002888,60]
[404664669,1770397841022,-878.5911267,0.0002894,2]
[404664671,1770397841031,-267.33,0.0002899,3]
[404664673,1770397841041,-801.99,0.0002899,3]
[404664675,1770397841050,-2437.73245467,0.00029,2]
[404664677,1770397841061,-698.91,0.00029,2]
[404664680,1770397841077,-265.07498569,0.00029,2]
[404665264,1770397847059,-250.0,0.00026369,2]
[404665266,1770397847069,-314.41556195,0.00026369,2]
[404665268,1770397847081,-500.0,0.00026369,2]
[404665270,1770397847090,-250.0,0.00026369,2]
[404665272,1770397847101,-286.28525849,0.00026369,2]
[404665274,1770397847111,-160.0,0.00028292,2]
[404665276,1770397847121,-186965.87316396,0.00029,2]
[404665286,1770397847220,-7020.6919993,0.00029,2]
[404665309,1770397847441,-7574.83240031,0.00029,2]
[404665332,1770397847659,-3502.3484524,0.00029,2]
[404665334,1770397847670,-419760.0,0.00029,2]
[404665505,1770397870346,500.0,0.00013273,2]
[404665506,1770397871295,522.00461846,0.00013273,2]
[404665507,1770397930260,500.0,0.00013699,2]
[404665508,1770397930315,500.0,0.00014247,2]
[404665511,1770397933882,300.0,0.00013673,2]
[404665512,1770397933999,300.0,0.00014221,2]
[404665530,1770397993878,500.0,0.00013273,2]
[404665531,1770397993934,500.0,0.00013821,2]
[404665534,1770398002633,500.0,0.00013273,2]
[404665535,1770398002696,1000.0,0.00013821,2]
[404665536,1770398002746,1500.0,0.00014368,2]
[404665537,1770398002801,500.0,0.00014916,2]
[404665544,1770398052245,500.0,0.00013699,2]
[404665546,1770398055216,500.0,0.00013699,2]
[404665547,1770398055276,1000.0,0.00014247,2]
[404665548,1770398055305,300.0,0.00013673,2]
[404665551,1770398237304,500.0,0.00013273,2]
[404665552,1770398237353,1000.0,0.00013821,2]
[404665553,1770398237404,1000.0,0.00014368,2]
[404665555,1770398413548,14004.8666768,0.00030136,120]
[404665559,1770398463462,500.0,0.00013273,2]
[404665560,1770398463753,500.0,0.00013273,2]
[404665561,1770398463798,405.3060058,0.00013821,2]
[404665562,1770398463856,500.30090686,0.00013273,2]
[404665564,1770398463919,160.86413071,0.00013699,2]
[404665569,1770398542150,10000.0,0.00015071,2]
[404665570,1770398553124,10000.0,0.00015071,2]
[404665571,1770398560860,10000.0,0.00015071,2]
[404665572,1770398578379,1300.0,0.00015071,2]
[404665738,1770399031681,-1404.17076944,0.0001683,2]
[404666246,1770399037558,-355.33129462,0.0001683,2]
[404666248,1770399037570,-1913.36986182,0.0001683,2]
[404666253,1770399037612,-1327.12807412,0.0001683,2]
[404666255,1770399037622,-908.97827091,0.00017,2]
[404666258,1770399037635,-150.0,0.00020455,2]
[404666260,1770399037645,-177.0,0.00022455,2]
[404666262,1770399037655,-413.702176,0.00023909,2]
[404666264,1770399037666,-238.85640737,0.00024455,2]
[404666266,1770399037675,-300.0,0.00024818,2]
[404666268,1770399037687,-631.0,0.00024818,2]
[404666270,1770399037697,-1069.2570716,0.00024819,2]
[404666273,1770399037709,-1092.60901402,0.00024819,2]
[404666353,1770399044144,-7228.85944707,0.00024819,2]
[404666354,1770399044154,-559.58,0.0002499,3]
[404666355,1770399044164,-568.72,0.0002499,3]
[404666356,1770399044174,-542.69351505,0.00024999,2]
[404666357,1770399044183,-64497.05782484,0.00025,15]
[404666370,1770399045770,-3892.728534,0.00025,15]
[404666372,1770399045782,-95492.87931675,0.00025,15]
[404666373,1770399045791,-150.16,0.00025,7]
[404666375,1770399045800,-3264.86744863,0.00025012,2]
[404666377,1770399045810,-300.0,0.00025314,10]
[404666379,1770399045819,-219.25161118,0.00025349,2]
[404666381,1770399045829,-600.0,0.00025499,10]
[404666383,1770399045838,-221.1753416,0.00025656,2]
[404666385,1770399045848,-2865.0990237,0.00026551,2]
[404666387,1770399045858,-420.0,0.00026891,2]
[404666389,1770399045867,-34280.43465573,0.0002699,2]
[404666390,1770399045877,-339.007,0.00026992,2]
[404666391,1770399045887,-324.816,0.00026992,2]
[404666392,1770399045897,-20566.27,0.00027,2]
[404666393,1770399045907,-3264.86744861,0.00027139,2]
[404666394,1770399045916,-183.328,0.00027299,16]
[404666395,1770399045928,-250.0,0.00027384,2]
[404666396,1770399045937,-151.0,0.00027384,2]
[404666397,1770399045947,-151.0,0.00027384,2]
[404666398,1770399045957,-151.0,0.00027384,2]
[404666399,1770399045968,-151.0,0.00027384,2]
[404666400,1770399045977,-151.0,0.00027384,2]
[404666401,1770399045987,-151.0,0.00027384,2]
[404666402,1770399045997,-176.74262169,0.00027384,2]
[404666403,1770399046007,-500.0,0.00027384,2]
[404666404,1770399046016,-250.0,0.00027384,2]
[404666405,1770399046027,-500.0,0.00027384,2]
[404666406,1770399046037,-500.0,0.00027384,2]
[404666407,1770399046047,-500.0,0.00027384,2]
[404666408,1770399046056,-500.0,0.00027384,2]
[404666409,1770399046065,-500.0,0.00027384,2]
[404666410,1770399046075,-500.0,0.00027384,2]
[404666411,1770399046084,-500.0,0.00027384,2]
[404666412,1770399046094,-500.0,0.00027384,2]
[404666413,1770399046103,-500.0,0.00027384,2]
[404666414,1770399046113,-500.0,0.00027384,2]
[404666415,1770399046123,-500.0,0.00027384,2]
[404666416,1770399046132,-500.0,0.00027384,2]
[404666417,1770399046141,-500.0,0.00027384,2]
[404666418,1770399046150,-500.0,0.00027384,2]
[404666419,1770399046159,-259.80035623,0.00027384,2]
[404666420,1770399046169,-541.55415198,0.00027384,2]
[404666421,1770399046178,-500.0,0.00027384,2]
[404666422,1770399046315,-500.0,0.00027384,2]
[404666423,1770399046325,-500.0,0.00027384,2]
[404666424,1770399046334,-500.0,0.00027384,2]
[404666425,1770399046343,-500.0,0.00027384,2]
[404666426,1770399046354,-500.0,0.00027384,2]
[404666427,1770399046363,-500.0,0.00027384,2]
[404666428,1770399046374,-500.0,0.00027384,2]
[404666429,1770399046383,-500.0,0.00027384,2]
[404666430,1770399046392,-534.66,0.0002739,3]
[404666431,1770399046402,-1048.335,0.00027391,2]
[404666432,1770399046411,-500.0,0.00027399,2]
[404666433,1770399046420,-500.0,0.00027399,2]
[404666434,1770399046430,-500.0,0.00027399,2]
[404666435,1770399046443,-500.0,0.00027399,2]
[404666436,1770399046453,-500.0,0.00027399,2]
[404666437,1770399046462,-572.96317939,0.00027399,2]
[404666438,1770399046471,-500.0,0.00027399,2]
[404666439,1770399046481,-500.0,0.00027399,2]
[404666440,1770399046490,-502.53505348,0.00027399,2]
[404666441,1770399046501,-500.0,0.00027399,2]
[404666442,1770399046511,-500.0,0.00027399,2]
[404666443,1770399046521,-500.0,0.00027399,2]
[404666444,1770399046530,-500.0,0.00027399,2]
[404666445,1770399046540,-500.0,0.00027399,2]
[404666446,1770399046549,-500.0,0.00027399,2]
[404666447,1770399046559,-500.0,0.00027399,2]
[404666448,1770399046568,-500.0,0.00027399,2]
[404666449,1770399046577,-500.0,0.00027399,2]
[404666450,1770399046587,-500.0,0.00027399,2]
[404666451,1770399046596,-500.0,0.00027399,2]
[404666452,1770399046606,-500.0,0.00027399,2]
[404666453,1770399046615,-500.0,0.00027399,2]
[404666454,1770399046625,-500.0,0.00027399,2]
[404666455,1770399046636,-500.0,0.00027399,2]
[404666456,1770399046645,-500.0,0.00027399,2]
[404666457,1770399046654,-500.0,0.00027399,2]
[404666458,1770399046664,-500.0,0.00027399,2]
[404666459,1770399046674,-500.0,0.00027399,2]
[404666460,1770399046684,-500.0,0.00027399,2]
[404666461,1770399046699,-500.0,0.00027399,2]
[404666462,1770399046708,-500.0,0.00027399,2]
[404666463,1770399046718,-500.0,0.00027399,2]
[404666464,1770399046727,-227.46615845,0.00027399,2]
[404666465,1770399046737,-285.0,0.00027399,2]
[404666466,1770399046747,-500.0,0.00027399,2]
[404666467,1770399046757,-500.0,0.00027399,2]
[404666468,1770399046766,-391.84961678,0.00027399,2]
[404666469,1770399046776,-500.0,0.00027399,2]
[404666470,1770399046785,-500.0,0.00027399,2]
[404666471,1770399046795,-500.0,0.00027399,2]
[404666472,1770399046805,-200.0,0.00027399,2]
[404666473,1770399046814,-500.0,0.00027399,2]
[404666474,1770399046824,-127451.469606,0.000274,2]
[404666475,1770399046833,-168.0,0.00027738,2]
[404666476,1770399046843,-168.0,0.00027774,2]
[404666477,1770399046852,-150.16,0.000278,7]
[404666478,1770399046862,-168.0,0.00027971,2]
[404666479,1770399046872,-524.1675,0.0002798,2]
[404666480,1770399046881,-524.1675,0.0002799,2]
[404666481,1770399046891,-3729.8000762,0.00028,2]
[404666482,1770399046900,-720.0,0.00028049,30]
[404666483,1770399046910,-187.52344874,0.0002813,2]
[404666484,1770399046920,-1041.66666667,0.00028304,2]
[404666485,1770399046934,-741.48751943,0.00028442,2]
[404666486,1770399046948,-500.0,0.00028932,30]
[404666487,1770399046957,-500.0,0.00028932,30]
[404666488,1770399046968,-500.0,0.00028932,30]
[404666489,1770399046978,-500.0,0.00028932,30]
[404666490,1770399046987,-500.0,0.00028932,30]
[404666491,1770399046998,-500.0,0.00028932,30]
[404666492,1770399047007,-500.0,0.00028932,30]
[404666493,1770399047017,-158.77736211,0.00028932,30]
[404666494,1770399047026,-8386.68,0.0002899,2]
[404666495,1770399047036,-450135.82032328,0.00029,2]
[404666496,1770399047049,-501.0,0.00029,2]
[404666497,1770399047061,-1284.5014,0.00029,2]
[404666498,1770399067025,500.0,0.00013699,2]
[404666500,1770399072856,500.0,0.00013699,2]
[404666501,1770399073860,49.11256825,0.00013699,2]
[404666502,1770399073887,252.44873668,0.00013699,2]
[404666503,1770399077707,500.0,0.00013699,2]
[404666504,1770399077969,500.0,0.00013699,2]
[404666505,1770399127036,500.0,0.00013699,2]
[404666507,1770399130216,500.0,0.00013699,2]
[404666508,1770399130477,500.0,0.00013699,2]
[404666509,1770399133026,500.0,0.00013699,2]
[404666510,1770399133057,400.32003782,0.00014247,2]
[404666511,1770399133790,500.00498246,0.00013699,2]
[404666512,1770399136289,500.0,0.00013699,2]
[404666513,1770399136340,1000.0,0.00014247,2]
[404666514,1770399136442,300.0,0.00013673,2]
[404666515,1770399137290,500.0,0.00013699,2]
[404666516,1770399137327,654.60959392,0.00014247,2]
[404666517,1770399185573,500.0,0.00013699,2]
[404666521,1770399604826,165.9474586,0.00013699,2]
[404666523,1770399843019,151.0,0.00013273,2]
[404666682,1770400240010,-714.87,0.00023772,2]
[404666684,1770400240022,-4285.13,0.00023772,2]
[404666686,1770400240032,-300.0,0.00024994,2]
[404666687,1770400240041,-300.0,0.00024994,2]
[404666689,1770400240050,-300.0,0.00024994,2]
[404666691,1770400240060,-9304.73133086,0.00024994,2]
[404666693,1770400240069,-300.0,0.00025494,10]
[404666695,1770400240078,-1986.9816099,0.00026255,2]
[404666697,1770400240090,-390.054129,0.00026484,2]
[404666699,1770400240099,-1098.442971,0.00026655,2]
[404666701,1770400240108,-297.0,0.00027,7]
[404666703,1770400240118,-420.0,0.00027077,2]
[404666705,1770400240127,-3533.3475384,0.0002737,6]
[404666707,1770400240137,-297.0,0.00027671,14]
[404666709,1770400240146,-400.0,0.0002772,3]
[404666711,1770400240156,-711.0,0.00027875,3]
[404666713,1770400240165,-171.80584596,0.0002797,7]
[404666715,1770400240175,-1041.66666667,0.00028,3]
[404666717,1770400240184,-13987.6,0.00028,14]
[404666719,1770400240193,-2799.7199076,0.00028005,2]
[404666721,1770400240203,-410.0,0.00028025,3]
[404666723,1770400240211,-711.0,0.00028105,3]
[404666725,1770400240221,-1041.66666667,0.00028257,2]
[404666728,1770400240230,-741.48751943,0.00028257,2]
[404666729,1770400240244,-400.0,0.00028345,3]
[404666731,1770400240253,-161.0,0.0002836,3]
[404666733,1770400240263,-400.0,0.0002836,3]
[404666735,1770400240272,-315.52257646,0.00028483,2]
[404666737,1770400240283,-319.13727108,0.00028483,2]
[404666739,1770400240292,-600.0,0.00028559,30]
[404666741,1770400240301,-1505.4266288,0.00028622,2]
[404666743,1770400240312,-1927.7036949,0.00028622,2]
[404666745,1770400240321,-711.0,0.0002868,3]
[404666747,1770400240330,-297.0,0.00028767,14]
[404666749,1770400240343,-358.60735094,0.00028899,2]
[404666751,1770400240352,-376.87217964,0.00028899,2]
[404666753,1770400240361,-365.0,0.00028899,2]
[404666755,1770400240370,-285.88479771,0.00028899,2]
[404666757,1770400240379,-500.0,0.00028899,2]
[404666759,1770400240388,-300.0,0.00028899,2]
[404666761,1770400240397,-717.46,0.0002899,3]
[404666763,1770400240407,-358.73,0.0002899,3]
[404666765,1770400240416,-179.36,0.0002899,3]
[404666767,1770400240426,-179.36,0.0002899,3]
[404666769,1770400240435,-632.42300532,0.00028999,2]
[404666771,1770400240444,-336.71361412,0.00028999,2]
[404666773,1770400240454,-76811.83256343,0.00029,2]
[404666947,1770400244998,-2054.92963174,0.00029,2]
[404666948,1770400245010,-26124.57008025,0.00029,2]
[404666949,1770400245022,-12095.90872,0.00029,2]
[404666950,1770400245033,-1028.85686,0.00029,2]
[404667006,1770400246062,-2737.73835864,0.00029,2]
[404667018,1770400627110,345.01836536,0.00030136,120]
[404667020,1770400675255,213.0541177,0.00030136,120]
[404667023,1770400828254,237.20805,0.00027,120]
[404667024,1770400835037,200.0,0.00027,120]
[404667025,1770400938502,-4533.58701998,0.00024456,2]
[404667070,1770401432072,-5000.0,0.00022669,2]
[404667071,1770401432082,-300.0,0.00022898,2]
[404667072,1770401432091,-1200.0,0.00022898,2]
[404667073,1770401432101,-1439.49839823,0.00022898,2]
[404667074,1770401432113,-1429.60177525,0.00022898,2]
[404667075,1770401432124,-5396.49146105,0.00022898,2]
[404667076,1770401432134,-213.12368545,0.000229,2]
[404667077,1770401432143,-500.0,0.00022999,2]
[404667078,1770401432153,-500.0,0.00022999,2]
[404667079,1770401432162,-500.0,0.00022999,2]
[404667080,1770401432172,-500.0,0.00022999,2]
[404667081,1770401432181,-93.255047,0.00022999,2]
[404667107,1770401438161,-406.744953,0.00022999,2]
[404667108,1770401438172,-500.0,0.00022999,2]
[404667109,1770401438182,-500.0,0.00022999,2]
[404667110,1770401438193,-142.09422875,0.00022999,2]
[404667111,1770401438205,-357.90577125,0.00022999,2]
[404667112,1770401438214,-500.0,0.00022999,2]
[404667113,1770401438224,-500.0,0.00022999,2]
[404667114,1770401438234,-188.22518002,0.00022999,2]
[404667115,1770401438243,-500.0,0.00022999,2]
[404667116,1770401438253,-284.10005668,0.00022999,2]
[404667117,1770401438263,-500.0,0.00022999,2]
[404667118,1770401438273,-500.0,0.00022999,2]
[404667119,1770401438282,-500.0,0.00022999,2]
[404667120,1770401438292,-500.0,0.00022999,2]
[404667121,1770401438302,-500.0,0.00022999,2]
[404667122,1770401438311,-500.0,0.00022999,2]
[404667123,1770401438323,-500.0,0.00022999,2]
[404667124,1770401438333,-500.0,0.00022999,2]
[404667125,1770401438343,-500.0,0.00022999,2]
[404667126,1770401438353,-569.15679394,0.00022999,2]
[404667127,1770401438363,-500.0,0.00022999,2]
[404667128,1770401438372,-385.79546937,0.00022999,2]
[404667129,1770401438385,-114.20453063,0.00022999,2]
[404667130,1770401438395,-442.69610372,0.00022999,2]
[404667131,1770401438405,-235.69952989,0.00022999,2]
[404667132,1770401438415,-500.0,0.00022999,2]
[404667133,1770401438425,-500.0,0.00022999,2]
[404667134,1770401438435,-500.0,0.00022999,2]
[404667135,1770401438445,-500.0,0.00022999,2]
[404667136,1770401438455,-500.0,0.00022999,2]
[404667137,1770401438465,-500.0,0.00022999,2]
[404667138,1770401438476,-500.0,0.00022999,2]
[404667139,1770401438486,-500.0,0.00022999,2]
[404667140,1770401438496,-500.0,0.00022999,2]
[404667141,1770401438506,-500.0,0.00022999,2]
[404667142,1770401438516,-456.01340206,0.00022999,2]
[404667143,1770401438529,-500.0,0.00022999,2]
[404667144,1770401438540,-500.0,0.00022999,2]
[404667145,1770401438550,-413.8406189,0.00022999,2]
[404667146,1770401438559,-500.0,0.00022999,2]
[404667147,1770401438575,-500.0,0.00022999,2]
[404667148,1770401438586,-500.0,0.00022999,2]
[404667149,1770401438599,-500.0,0.00022999,2]
[404667150,1770401438609,-500.0,0.00022999,2]
[404667151,1770401438619,-500.0,0.00022999,2]
[404667152,1770401438629,-500.0,0.00022999,2]
[404667153,1770401438639,-574.78261031,0.00022999,2]
[404667154,1770401438650,-500.0,0.00022999,2]
[404667155,1770401438660,-500.0,0.00022999,2]
[404667156,1770401438670,-500.0,0.00022999,2]
[404667157,1770401438680,-57570.41566602,0.00023,30]
[404667158,1770401438979,-428.47,0.00023,30]
[404667228,1770401440606,-1635.28959165,0.00023,30]
[404667474,1770401444994,-4715.01736071,0.00023,30]
[404667478,1770401445790,-6354.87319261,0.00023,30]
[404667493,1770401446729,-7574.84483548,0.00023,30]
[404667494,1770401446741,-19550.48311622,0.00023,30]
[404667495,1770401446756,-14546.2,0.00023,30]
[404667794,1770402632223,-1673.43472904,0.00020175,2]
[404667896,1770402638430,-3326.56527096,0.00020175,2]
[404667898,1770402638440,-300.0,0.00020584,2]
[404667900,1770402638450,-360.23663301,0.00020585,2]
[404667902,1770402638459,-7662.57437837,0.00020585,2]
[404667904,1770402638469,-295.83311943,0.0002156,2]
[404667906,1770402638478,-413.702175,0.00021671,2]
[404667908,1770402638488,-297.82815575,0.00021962,2]
[404667910,1770402638498,-157.66503119,0.0002216,5]
[404667912,1770402638507,-182.13973474,0.0002216,5]
[404667914,1770402638516,-207.65046256,0.00022999,2]
[404667916,1770402638525,-65987.72357668,0.00023,30]
[404667918,1770402638537,-729.41544042,0.00023,30]
[404668049,1770402700584,-2737.73835864,0.00019973,2]
[404668066,1770403080321,230.08,9.99e-05,2]
[404668073,1770403568652,500.0,0.00013273,2]
[404668092,1770403638177,500.0,0.00013273,2]
[404668093,1770403639595,500.0,0.00013273,2]
[404668094,1770403640247,500.0,0.00013273,2]
[404668106,1770403832429,-526.40878336,0.00018707,2]
[404668107,1770403832441,-4473.59121664,0.00018707,2]
[404668108,1770403832451,-364.36358149,0.00018896,2]
[404668109,1770403832460,-166.66666668,0.00019096,2]